bitfinex-derivatives/quotes_SOLF0:USTF0_20260305
["timestamp","ask_amount","ask_price","bid_price","bid_amount"]
[1772723981277,0.33734638,89.659,89.581,15.82047907]
[1772723981976,10.038,89.64,89.581,15.82047907]
[1772723982181,0.34536835,89.639,89.561,15.81780174]
[1772723982480,9.22063379,89.665,89.521,15.81780174]
[1772723982481,0.34536835,89.619,89.521,15.81780174]
[1772723982674,0.34536835,89.619,89.537,15.8176972]
[1772723982873,9.40178973,89.62,89.537,15.8176972]
[1772723983070,10.041,89.619,89.55,15.8176972]
[1772723983270,9.40178973,89.62,89.55,15.8176972]
[1772723983676,9.40178973,89.62,89.554,10.048]
[1772723983879,9.40178973,89.64,89.555,16.17848042]
[1772723984278,10.039,89.63,89.578,0.07059951]
[1772723984673,9.40178973,89.64,89.578,0.07059951]
[1772723984882,9.40178973,89.64,89.575,16.17840984]
[1772723985674,9.40178973,89.67,89.577,16.16314706]
[1772723985880,8.50664507,89.665,89.577,16.16314706]
[1772723986379,9.40178973,89.67,89.602,16.16314706]
[1772723986581,9.40178973,89.69,89.602,16.16314706]
[1772723986778,10.035,89.666,89.603,10.042]
[1772723986979,10.035,89.666,89.59,9.40178973]
[1772723986980,10.035,89.666,89.604,16.16307771]
[1772723987181,8.51342284,89.689,89.604,16.16307771]
[1772723987480,9.40178973,89.69,89.604,16.16307771]
[1772723987875,10.036,89.658,89.604,16.16307771]
[1772723988078,9.40178973,89.65,89.583,16.15843378]
[1772723988479,9.40178973,89.69,89.594,16.15843378]
[1772723988679,9.40178973,89.65,89.561,16.15836595]
[1772723989376,9.40178973,89.63,89.561,16.15836595]
[1772723989582,9.40178973,89.63,89.566,16.15131382]
[1772723990487,9.40178973,89.63,89.569,10.046]
[1772723990685,10.038,89.638,89.57,16.15123708]
[1772723991780,10.037,89.647,89.578,16.14350172]
[1772723991980,9.40178973,89.67,89.581,16.14350172]
[1772723992376,10.036,89.656,89.593,26.18650172]
[1772723992886,10.035,89.664,89.603,10.042]
[1772723993080,10.035,89.664,89.604,16.14342826]
[1772723993280,9.40178973,89.67,89.604,16.14342826]
[1772723993482,8.51465327,89.689,89.607,16.14342826]
[1772723993684,8.51465327,89.694,89.607,16.14342826]
[1772723993983,8.51465327,89.693,89.607,16.14342826]
[1772723994293,8.51465327,89.692,89.616,16.13699625]
[1772723994485,9.40178973,89.71,89.621,16.13692627]
[1772723994982,9.40178973,89.71,89.649,10.037]
[1772723995187,9.40178973,89.71,89.643,16.13692627]
[1772723995682,9.40178973,89.73,89.643,16.13692627]
[1772723996185,10.028,89.728,89.662,16.18582927]
[1772723996789,9.40178973,89.73,89.641,16.18576429]
[1772723996986,9.40178973,89.71,89.641,16.18576429]
[1772723997387,9.40178973,89.69,89.617,16.18576429]
[1772723997885,10.034,89.681,89.617,16.18576429]
[1772723998484,10.034,89.681,89.619,10.04]
[1772723998689,9.40178973,89.7,89.617,16.18576429]
[1772723999593,9.40178973,89.7,89.62,16.13469108]
[1772723999795,8.49627759,89.728,89.62,16.13469108]
[1772723999796,9.40178973,89.68,89.62,16.13469108]
[1772724000588,9.40178973,89.68,89.581,16.13462153]
[1772724000994,9.40178973,89.68,89.601,16.13462153]
[1772724001292,9.40178973,89.72,89.621,16.13462153]
[1772724001686,9.40178973,89.7,89.621,16.13462153]
[1772724002090,10.034,89.676,89.621,16.13462153]
[1772724002495,9.40178973,89.7,89.621,16.13462153]
[1772724002710,9.40178973,89.7,89.527,156.352]
[1772724002711,10.037,89.653,89.594,16.11103285]
[1772724003100,10.038,89.645,89.594,16.11103285]
[1772724003504,9.40178973,89.68,89.594,16.11103285]
[1772724004194,9.40178973,89.7,89.601,16.10806011]
[1772724004399,9.40178973,89.72,89.621,16.10806011]
[1772724004598,9.40178973,89.7,89.626,16.10798884]
[1772724004899,9.40178973,89.72,89.626,16.10798884]
[1772724005398,9.40178973,89.72,89.64,16.10798884]
[1772724005604,8.48047466,89.742,89.62,16.11898525]
[1772724005605,9.40178973,89.7,89.62,16.11898525]
[1772724006207,0.07044502,89.669,89.621,10.04]
[1772724006500,0.07044502,89.669,89.622,16.11898525]
[1772724007406,9.40178973,89.7,89.633,16.11891896]
[1772724007909,10.033,89.683,89.633,16.11891896]
[1772724008506,9.40178973,89.73,89.633,16.11891896]
[1772724008710,9.40178973,89.73,89.641,16.08727023]
[1772724009309,10.028,89.727,89.666,10.035]
[1772724009803,9.40178973,89.75,89.663,16.08727023]
[1772724011105,9.40178973,89.73,89.663,16.08727023]
[1772724011808,10.03,89.713,89.663,16.08727023]
[1772724012010,9.40178973,89.73,89.663,16.08727023]
[1772724012607,10.029,89.723,89.663,16.08727023]
[1772724012910,9.40178973,89.75,89.663,16.08727023]
[1772724013303,9.40178973,89.76,89.685,16.03924125]
[1772724014406,10.027,89.736,89.685,16.03924125]
[1772724014803,9.40178973,89.76,89.685,16.03924125]
[1772724015011,10.028,89.729,89.661,16.1069367]
[1772724016010,10.027,89.737,89.674,16.17437633]
[1772724016608,20.048,89.771,89.66,9.40178973]
[1772724016609,10.026,89.745,89.686,16.17432381]
[1772724016816,1.93978311,89.779,89.686,16.17432381]
[1772724017010,9.40178973,89.76,89.697,0.07032837]
[1772724017208,10.027,89.741,89.697,0.07032837]
[1772724017404,9.40178973,89.76,89.697,0.07032837]
[1772724017405,9.40178973,89.76,89.698,16.17432381]
[1772724017904,9.40178973,89.78,89.698,16.17432381]
[1772724018104,9.40178973,89.8,89.701,16.17231809]
[1772724018315,440.0,89.854,89.66,156.121]
[1772724018316,9.40178973,89.82,89.732,16.17231809]
[1772724018711,10.023,89.777,89.732,16.17231809]
[1772724019106,9.40178973,89.78,89.688,16.1722678]
[1772724019912,10.026,89.745,89.688,16.1722678]
[1772724020110,9.40178973,89.76,89.688,16.1722678]
[1772724020315,9.40178973,89.74,89.663,16.15502961]
[1772724021420,10.028,89.733,89.665,16.15496741]
[1772724021611,9.40178973,89.74,89.665,16.15496741]
[1772724021806,10.028,89.727,89.665,16.15496741]
[1772724022117,9.40178973,89.72,89.643,16.17455113]
[1772724022713,9.40178973,89.7,89.643,16.17455113]
[1772724023012,9.40178973,89.7,89.623,189.33002165]
[1772724023013,9.40178973,89.7,89.624,16.17449515]
[1772724023217,9.40178973,89.7,89.623,189.33002165]
[1772724023218,9.40178973,89.72,89.641,16.17449515]
[1772724023518,9.40178973,89.74,89.641,16.17449515]
[1772724023718,10.03,89.709,89.641,16.17449515]
[1772724024214,9.40178973,89.72,89.643,16.18000063]
[1772724025114,9.40178973,89.74,89.643,16.18000063]
[1772724025317,9.40178973,89.74,89.673,0.07026372]
[1772724025815,9.40178973,89.74,89.646,16.28704685]
[1772724026016,10.03,89.712,89.649,16.28704685]
[1772724026219,9.95935787,89.78,89.649,16.28704685]
[1772724026411,9.95935787,89.78,89.64,9.40178973]
[1772724026412,9.40178973,89.77,89.661,16.28704685]
[1772724026619,10.026,89.752,89.697,16.28700127]
[1772724027012,9.40178973,89.75,89.661,16.28700127]
[1772724027316,9.40178973,89.75,89.676,16.28700127]
[1772724028517,9.40178973,89.77,89.68,9.40178973]
[1772724028724,9.40178973,89.77,89.681,16.28333294]
[1772724028919,9.40178973,89.79,89.681,16.28333294]
[1772724029124,10.023,89.778,89.711,10.03]
[1772724029321,9.40178973,89.79,89.712,16.28333294]
[1772724029525,9.40178973,89.81,89.712,16.28333294]
[1772724029818,9.40178973,89.81,89.733,16.28237016]
[1772724030523,10.02,89.806,89.733,16.28237016]
[1772724030819,9.40178973,89.81,89.733,16.28237016]
[1772724031219,9.40178973,89.81,89.701,16.31746994]
[1772724031520,9.40178973,89.81,89.721,16.31746994]
[1772724031923,9.40178973,89.81,89.72,9.40178973]
[1772724031924,9.40178973,89.81,89.751,10.026]
[1772724032328,9.96206579,89.855,89.752,16.12165451]
[1772724032518,430.90601752,89.858,89.78,9.40178973]
[1772724032722,9.40178973,89.85,89.761,16.12165451]
[1772724033026,10.017,89.829,89.742,16.12160341]
[1772724033221,9.40178973,89.81,89.742,16.12160341]
[1772724033627,19.41878973,89.83,89.745,16.12160341]
[1772724033817,9.40178973,89.83,89.745,16.12160341]
[1772724034622,10.019,89.81,89.745,16.12160341]
[1772724034922,9.35438921,89.8,89.701,16.45052646]
[1772724035120,9.35438921,89.78,89.708,26.48052646]
[1772724035324,9.35438921,89.78,89.709,16.45052646]
[1772724035724,9.35438921,89.78,89.714,16.47589971]
[1772724036126,9.96206579,89.838,89.714,16.47589971]
[1772724036325,26.56550878,89.895,89.662,468.352]
[1772724036326,9.35438921,89.84,89.731,16.47589971]
[1772724036522,13.28275439,89.886,89.7,9.35438921]
[1772724036523,9.35438921,89.86,89.771,16.47586413]
[1772724036727,9.35438921,89.86,89.773,16.47586413]
[1772724037231,10.013,89.868,89.773,16.47586413]
[1772724037529,9.35438921,89.88,89.774,16.47586413]
[1772724037728,9.35438921,89.86,89.774,16.47586413]
[1772724037922,8.47427847,89.886,89.774,16.47586413]
[1772724038128,9.35438921,89.87,89.774,16.47586413]
[1772724038326,10.015,89.849,89.774,16.47586413]
[1772724038723,9.35438921,89.87,89.774,16.47586413]
[1772724038927,9.35438921,89.88,89.791,16.47788687]
[1772724039132,9.35438921,89.86,89.791,16.47788687]
[1772724039336,1.93734795,89.889,89.766,16.47788687]
[1772724039337,10.017,89.828,89.766,16.47788687]
[1772724039530,9.35438921,89.84,89.766,16.47788687]
[1772724039834,10.021,89.793,89.741,16.47216358]
[1772724040026,9.35438921,89.82,89.741,16.47216358]
[1772724040427,9.35438921,89.8,89.741,16.47216358]
[1772724041124,10.02,89.799,89.714,16.47212745]
[1772724041532,9.35438921,89.8,89.714,16.47212745]
[1772724041729,9.35438921,89.78,89.714,16.47212745]
[1772724042125,9.35438921,89.8,89.714,16.47212745]
[1772724042322,9.35438921,89.78,89.714,16.47212745]
[1772724042630,155.793,89.849,89.58,62.0]
[1772724042631,9.35438921,89.8,89.728,16.47064531]
[1772724043131,9.35438921,89.82,89.73,16.47064531]
[1772724043929,10.018,89.819,89.73,16.47064531]
[1772724044433,9.35438921,89.8,89.73,16.47064531]
[1772724044631,9.35438921,89.82,89.73,16.47064531]
[1772724045029,9.35438921,89.79,89.73,16.47064531]
[1772724045432,9.35438921,89.81,89.73,16.47064531]
[1772724045829,9.35438921,89.79,89.691,16.54619815]
[1772724046228,10.023,89.78,89.692,16.54619815]
[1772724046432,9.35438921,89.79,89.692,16.54619815]
[1772724047226,10.023,89.78,89.708,16.54619287]
[1772724047830,19.37538921,89.79,89.71,16.54840114]
[1772724048027,9.35438921,89.81,89.71,9.35438921]
[1772724048227,10.02,89.806,89.725,16.54840114]
[1772724048425,9.35438921,89.81,89.725,16.54840114]
[1772724049127,0.07067194,89.776,89.725,16.54840114]
[1772724050129,0.07067194,89.776,89.728,16.54733967]
[1772724050726,9.35438921,89.81,89.728,16.54733967]
[1772724051135,10.021,89.793,89.728,16.54733967]
[1772724051330,9.35438921,89.79,89.728,16.54733967]
[1772724052226,10.024,89.766,89.728,16.54733967]
[1772724052424,9.35438921,89.79,89.728,16.54733967]
[1772724052731,10.022,89.788,89.728,16.54733967]
[1772724053134,8.40106245,89.809,89.728,16.54733967]
[1772724053334,10.023,89.78,89.728,16.54733967]
[1772724053829,9.35438921,89.79,89.711,16.55326799]
[1772724055032,9.35438921,89.79,89.723,16.55326894]
[1772724055429,9.35438921,89.77,89.669,16.55326894]
[1772724055638,9.35438921,89.75,89.681,16.5539812]
[1772724056030,19.38038921,89.75,89.691,16.5539812]
[1772724056435,9.35438921,89.75,89.691,16.5539812]
[1772724057036,10.026,89.75,89.691,16.5539812]
[1772724058037,10.027,89.742,89.691,16.5539812]
[1772724059036,9.35438921,89.77,89.691,16.5539812]
[1772724059426,10.026,89.751,89.691,16.5539812]
[1772724059731,9.35438921,89.78,89.691,16.5539812]
[1772724060237,10.027,89.742,89.691,16.5539812]
[1772724060536,9.35438921,89.74,89.666,16.47602956]
[1772724060726,9.35438921,89.76,89.675,16.47602991]
[1772724061331,10.026,89.75,89.678,16.47602991]
[1772724061538,9.96206579,89.786,89.678,16.47602991]
[1772724061539,9.35438921,89.74,89.678,16.47602991]
[1772724061737,9.35438921,89.74,89.652,16.47203112]
[1772724061940,9.35438921,89.72,89.652,16.47203112]
[1772724062330,10.027,89.737,89.667,16.47203112]
[1772724062533,9.35438921,89.72,89.631,16.47203112]
[1772724063135,9.35438921,89.7,89.631,16.47203112]
[1772724063334,9.35438921,89.7,89.604,16.47203074]
[1772724063532,9.35438921,89.68,89.606,16.48626376]
[1772724063740,9.35438921,89.7,89.606,16.48626376]
[1772724064241,9.35438921,89.7,89.628,16.48626376]
[1772724064636,10.029,89.718,89.633,16.48626154]
[1772724064837,9.35438921,89.74,89.64,9.35438921]
[1772724065030,9.35438921,89.74,89.603,156.22]
[1772724065031,9.35438921,89.76,89.661,16.48626154]
[1772724065538,9.35438921,89.76,89.64,9.35438921]
[1772724065539,9.35438921,89.8,89.701,16.84305563]
[1772724066037,9.35438921,89.8,89.716,16.84305563]
[1772724066734,9.35438921,89.82,89.725,16.84305518]
[1772724066939,9.35438921,89.8,89.725,16.84305518]
[1772724067135,9.35438921,89.8,89.727,16.84305518]
[1772724067336,9.35438921,89.84,89.741,16.84305518]
[1772724067938,9.26428854,89.872,89.756,16.7999416]
[1772724067939,9.35438921,89.82,89.756,16.7999416]
[1772724068340,9.35438921,89.84,89.759,16.7999416]
[1772724068936,10.016,89.839,89.762,16.79994105]
[1772724069240,9.35438921,89.82,89.74,16.79994105]
[1772724069443,9.35438921,89.84,89.741,16.79994105]
[1772724069638,9.35438921,89.8,89.741,16.79994105]
[1772724070243,9.35438921,89.8,89.711,16.42305315]
[1772724070740,9.35438921,89.82,89.731,16.42304869]
[1772724070945,9.35438921,89.84,89.751,16.42304869]
[1772724071238,155.736,89.882,89.751,16.42304869]
[1772724071239,10.02,89.8,89.751,16.42304869]
[1772724071439,10.02,89.8,89.71,9.35438921]
[1772724071440,9.35438921,89.8,89.711,16.42304869]
[1772724071642,10.024,89.763,89.711,16.42304869]
[1772724071838,9.35438921,89.78,89.687,16.38121734]
[1772724072838,9.35438921,89.78,89.691,16.38121102]
[1772724073237,9.35438921,89.78,89.713,10.03]
[1772724073737,9.35438921,89.78,89.655,156.129]
[1772724073738,9.35438921,89.81,89.714,16.16768713]
[1772724073944,9.35438921,89.81,89.736,16.16768713]
[1772724074343,13.25557305,89.859,89.71,9.35438921]
[1772724074344,10.016,89.839,89.761,10.025]
[1772724074547,9.35438921,89.84,89.757,16.16768713]
[1772724075046,10.016,89.838,89.759,16.167682]
[1772724075247,10.016,89.838,89.702,20.063]
[1772724075248,9.35438921,89.82,89.678,16.167682]
[1772724075444,9.35438921,89.82,89.721,16.167682]
[1772724075639,10.021,89.79,89.721,16.167682]
[1772724075839,9.27517498,89.847,89.721,16.167682]
[1772724075840,9.35438921,89.81,89.721,16.167682]
[1772724076340,10.022,89.785,89.721,16.167682]
[1772724076542,9.35438921,89.79,89.721,16.167682]
[1772724076847,9.35438921,89.81,89.721,16.167682]
[1772724077547,10.021,89.795,89.721,16.167682]
[1772724077748,9.35438921,89.81,89.721,16.167682]
[1772724077951,9.35438921,89.78,89.688,16.16323306]
[1772724078145,9.35438921,89.81,89.688,16.16323306]
[1772724078146,9.35438921,89.76,89.688,16.16323306]
[1772724079048,10.027,89.739,89.688,16.16323306]
[1772724079348,9.35438921,89.76,89.663,16.1632285]
[1772724079548,10.028,89.73,89.663,16.1632285]
[1772724079847,9.35438921,89.74,89.663,16.1632285]
[1772724080045,9.35438921,89.76,89.663,16.1632285]
[1772724080240,9.35438921,89.76,89.65,9.35438921]
[1772724080241,9.35438921,89.76,89.674,16.15500719]
[1772724080647,9.35438921,89.78,89.681,16.15500311]
[1772724080850,10.023,89.778,89.704,16.15500311]
[1772724081048,9.35438921,89.78,89.704,16.15500311]
[1772724081347,10.024,89.768,89.704,16.15500311]
[1772724081758,9.35438921,89.8,89.704,16.15500311]
[1772724082156,9.35438921,89.82,89.726,16.18895262]
[1772724082354,9.35438921,89.8,89.726,16.18895262]
[1772724082553,10.021,89.796,89.726,16.18895262]
[1772724083362,8.42230289,89.819,89.726,16.18895262]
[1772724083363,9.35438921,89.8,89.726,16.18895262]
[1772724084054,0.07043849,89.772,89.726,16.18895262]
[1772724084254,0.07043849,89.772,89.63,156.174]
[1772724084255,0.07043849,89.772,89.645,16.14192392]
[1772724084461,9.35438921,89.76,89.671,16.14192392]
[1772724085260,10.026,89.747,89.671,16.14192392]
[1772724085456,9.35438921,89.76,89.671,16.14192392]
[1772724085957,9.35438921,89.74,89.671,16.14192392]
[1772724086158,8.42337283,89.759,89.639,16.11548667]
[1772724086363,9.35438921,89.71,89.639,16.11548667]
[1772724086660,9.35438921,89.67,89.61,16.11548667]
[1772724086859,9.35438921,89.65,89.521,16.11547956]
[1772724087059,9.35438921,89.65,89.541,16.11547956]
[1772724087458,9.35438921,89.65,89.568,16.11547956]
[1772724088057,9.35438921,89.63,89.568,16.11547956]
[1772724088260,9.35438921,89.65,89.568,16.11547956]
[1772724088467,9.35438921,89.65,89.572,10.046]
[1772724088668,9.35438921,89.65,89.568,16.11547956]
[1772724089368,9.9959327,89.711,89.581,16.42699376]
[1772724089562,9.35438921,89.7,89.6,9.35438921]
[1772724089768,9.35438921,89.7,89.601,16.63529541]
[1772724089962,9.35438921,89.66,89.574,16.63529541]
[1772724090359,10.036,89.66,89.577,16.63529541]
[1772724090558,9.35438921,89.66,89.577,16.63529541]
[1772724090763,9.35438921,89.66,89.499,156.401]
[1772724090764,9.35438921,89.68,89.599,16.63529502]
[1772724091461,9.9959327,89.731,89.55,156.313]
[1772724091462,10.033,89.69,89.616,16.63529502]
[1772724091662,9.35438921,89.7,89.616,16.63529502]
[1772724092056,9.9959327,89.756,89.616,16.63529502]
[1772724092260,10.03,89.714,89.628,16.64150694]
[1772724092460,9.35438921,89.7,89.628,16.64150694]
[1772724092660,10.032,89.697,89.628,16.64150694]
[1772724092857,9.35438921,89.71,89.628,16.64150694]
[1772724093369,10.033,89.688,89.628,16.64150694]
[1772724094967,9.8774975,89.754,89.628,16.64150694]
[1772724095170,9.35438921,89.73,89.628,16.64150694]
[1772724095367,8.31907191,89.759,89.628,16.64150694]
[1772724095368,9.35438921,89.69,89.628,16.64150694]
[1772724095867,9.35438921,89.71,89.642,16.79358311]
[1772724096068,9.35438921,89.73,89.642,16.79358311]
[1772724096265,9.35438921,89.71,89.642,16.79358311]
[1772724096467,9.37610238,89.72,89.642,16.79358311]
[1772724097168,13.25557305,89.785,89.58,9.37610238]
[1772724097169,17.53977295,89.756,89.644,16.79358574]
[1772724097466,9.37610238,89.74,89.644,16.79358574]
[1772724098062,9.37610238,89.72,89.647,12.7616137]
[1772724098261,12.00529506,89.7,89.6,9.37610238]
[1772724098665,10.03,89.713,89.628,10.039]
[1772724098868,10.03,89.713,89.62,9.37610238]
[1772724099070,9.37610238,89.7,89.6,9.37610238]
[1772724099367,2.63218402,89.719,89.62,9.37610238]
[1772724099971,10.03,89.714,89.638,10.038]
[1772724100167,10.03,89.714,89.639,14.92252736]
[1772724100474,2.63218402,89.719,89.639,14.92252736]
[1772724101670,9.37610238,89.75,89.642,14.92252736]
[1772724101879,2.69818361,89.729,89.642,14.92252736]
[1772724102471,2.69818361,89.709,89.642,14.92252736]
[1772724102673,2.69818361,89.709,89.621,14.92252736]
[1772724102873,10.031,89.706,89.621,14.92252736]
[1772724103171,9.37610238,89.69,89.621,14.92252736]
[1772724103872,2.67988606,89.689,89.601,14.92252736]
[1772724104071,2.67988606,89.669,89.527,14.92252736]
[1772724104372,9.37610238,89.63,89.569,10.046]
[1772724104876,9.37610238,89.63,89.561,14.92252736]
[1772724105264,9.37610238,89.63,89.549,10.048]
[1772724105265,2.67519028,89.627,89.549,10.048]
[1772724105464,9.37610238,89.63,89.547,14.92252736]
[1772724105773,9.37610238,89.63,89.52,9.37610238]
[1772724105774,12.71219028,89.649,89.572,14.92252736]
[1772724105969,9.37610238,89.65,89.572,14.92252736]
[1772724105970,9.37610238,89.63,89.572,14.92252736]
[1772724106169,9.37610238,89.63,89.541,14.92252736]
[1772724106373,2.40171741,89.648,89.541,14.92252736]
[1772724106776,9.37610238,89.63,89.541,14.92252736]
[1772724107072,9.37610238,89.63,89.566,10.046]
[1772724107375,9.37610238,89.63,89.567,14.92252736]
[1772724108064,10.039,89.629,89.567,14.92252736]
[1772724108266,9.37610238,89.61,89.539,14.92252736]
[1772724108567,10.039,89.629,89.553,14.92252736]
[1772724108964,10.039,89.629,89.558,10.047]
[1772724109167,10.04,89.62,89.558,10.047]
[1772724109369,9.37610238,89.65,89.561,15.96294075]
[1772724109565,9.37610238,89.67,89.596,15.96294075]
[1772724109974,9.37610238,89.65,89.561,15.96294075]
[1772724110377,2.47358017,89.649,89.561,15.96294075]
[1772724110973,10.04,89.625,89.564,10.047]
[1772724111169,9.37610238,89.63,89.565,15.96294075]
[1772724111373,9.37610238,89.63,89.566,15.96294075]
[1772724111575,2.46919067,89.629,89.541,15.96294075]
[1772724111974,9.37610238,89.63,89.554,15.96294075]
[1772724112369,2.54467626,89.627,89.528,15.96294075]
[1772724112574,9.37610238,89.63,89.528,15.96294075]
[1772724112575,2.54467626,89.609,89.528,15.96294075]
[1772724113075,11.91650893,89.63,89.54,15.96294075]
[1772724113275,2.54040655,89.629,89.54,15.96294075]
[1772724113475,2.54040655,89.629,89.471,20.115]
[1772724113476,2.54040655,89.609,89.511,15.96294075]
[1772724113771,2.52878466,89.589,89.505,15.96294075]
[1772724113971,9.37610238,89.59,89.505,15.96294075]
[1772724114273,9.37610238,89.61,89.527,15.96294075]
[1772724114675,2.52455479,89.609,89.527,15.96294075]
[1772724114871,2.52455479,89.609,89.528,26.01394075]
[1772724115069,2.52455479,89.609,89.529,15.96294075]
[1772724116570,2.52455479,89.609,89.529,26.01394075]
[1772724116774,2.52455479,89.609,89.53,15.96294075]
[1772724117380,1.41767408,89.589,89.511,15.96294075]
[1772724117571,9.37610238,89.57,89.511,15.96294075]
[1772724117877,9.37610238,89.57,89.496,10.054]
[1772724118174,9.37610238,89.63,89.438,454.17735442]
[1772724118175,9.37610238,89.6,89.501,15.96294075]
[1772724118384,9.37610238,89.6,89.521,15.96294075]
[1772724118678,1.44461363,89.599,89.521,15.96294075]
[1772724119081,1.44461363,89.599,89.524,15.96294075]
[1772724120380,9.37610238,89.6,89.536,15.96294075]
[1772724120584,9.37610238,89.61,89.536,15.96294075]
[1772724120778,10.044,89.591,89.517,15.96294075]
[1772724121078,1.31018245,89.629,89.521,15.96294075]
[1772724121279,9.37610238,89.63,89.521,15.96294075]
[1772724121280,1.31018245,89.588,89.521,15.96294075]
[1772724121486,9.37610238,89.57,89.481,15.96294075]
[1772724121686,10.58175816,89.57,89.481,15.96294075]
[1772724121881,1.20213273,89.569,89.481,15.96294075]
[1772724122083,9.37610238,89.55,89.482,15.96294075]
[1772724122283,10.047,89.562,89.482,15.96294075]
[1772724122486,20.55610238,89.64,89.482,15.96294075]
[1772724122487,9.37610238,89.57,89.482,15.96294075]
[1772724122787,1.20219685,89.589,89.499,15.96294075]
[1772724123279,9.37610238,89.59,89.501,15.96294075]
[1772724123782,9.37610238,89.61,89.521,15.96294075]
[1772724124177,1.05127765,89.609,89.521,15.96294075]
[1772724124381,1.05127765,89.589,89.521,15.96294075]
[1772724125485,10.046,89.575,89.521,15.96294075]
[1772724125985,9.37610238,89.57,89.494,15.96294075]
[1772724126289,1.35149658,89.569,89.494,15.96294075]
[1772724126485,10.052,89.516,89.44,9.37610238]
[1772724126686,14.48449701,89.549,89.44,9.37610238]
[1772724127384,10.052,89.518,89.456,10.059]
[1772724127589,10.052,89.518,89.44,9.37610238]
[1772724127985,9.37610238,89.51,89.393,20.132]
[1772724128187,14.48449701,89.528,89.42,9.37610238]
[1772724128386,14.48449701,89.528,89.439,15.96294075]
[1772724128789,9.37610238,89.51,89.439,15.96294075]
[1772724129290,10.053,89.508,89.439,26.02394075]
[1772724129489,14.48449701,89.509,89.439,15.96294075]
[1772724129991,10.053,89.507,89.439,15.96294075]
[1772724130790,14.48449701,89.509,89.439,15.96294075]
[1772724131284,14.48449701,89.509,89.412,15.96294075]
[1772724131489,10.056,89.478,89.412,15.96294075]
[1772724131986,25.31213104,89.47,89.391,15.10749371]
[1772724132187,15.93602866,89.467,89.391,15.10749371]
[1772724132386,25.31213104,89.45,89.361,15.10749371]
[1772724132593,9.37610238,89.45,89.361,15.10749371]
[1772724132792,9.37610238,89.45,89.312,335.289]
[1772724132793,9.37610238,89.47,89.381,15.10749371]
[1772724133190,15.93602866,89.508,89.412,15.10749371]
[1772724133389,15.93602866,89.489,89.412,15.10749371]
[1772724133785,15.93602866,89.489,89.381,15.10749371]
[1772724133986,15.93602866,89.449,89.358,15.10749371]
[1772724134290,9.37610238,89.46,89.37,15.10749371]
[1772724134790,9.37610238,89.46,89.372,15.10749371]
[1772724134986,9.37610238,89.46,89.38,9.37610238]
[1772724135187,15.93602866,89.459,89.381,15.10749371]
[1772724135394,9.37610238,89.44,89.351,15.10749371]
[1772724135589,15.93602866,89.433,89.351,15.10749371]
[1772724136589,15.93602866,89.433,89.362,15.10749371]
[1772724136789,9.37610238,89.44,89.362,15.10749371]
[1772724136989,15.93602866,89.455,89.362,15.10749371]
[1772724137696,10.06,89.447,89.376,15.10749371]
[1772724137883,15.93602866,89.455,89.354,15.10749371]
[1772724138194,25.31213104,89.43,89.354,15.10749371]
[1772724138388,10.062,89.427,89.357,15.10749371]
[1772724138991,15.84927575,89.409,89.328,16.04278009]
[1772724139492,15.84927575,89.369,89.289,1.94735973]
[1772724139690,15.84927575,89.349,89.181,293.0]
[1772724139893,15.84927575,89.349,89.176,156.967]
[1772724139894,15.84927575,89.349,89.241,16.04278009]
[1772724140095,9.37610238,89.39,89.252,16.04278009]
[1772724140096,15.84927575,89.329,89.252,16.04278009]
[1772724140295,9.37610238,89.35,89.252,16.04278009]
[1772724140691,15.84927575,89.349,89.252,16.04278009]
[1772724140890,15.84927575,89.349,89.27,9.37610238]
[1772724141194,15.84927575,89.349,89.271,16.04278009]
[1772724141396,9.37610238,89.34,89.271,11.72278009]
[1772724141696,25.22537813,89.34,89.271,11.72278009]
[1772724141887,20.131,89.4,89.271,11.72278009]
[1772724141888,9.37610238,89.36,89.271,11.72278009]
[1772724142290,25.91927575,89.358,89.271,11.72278009]
[1772724142489,15.84927575,89.358,89.271,11.72278009]
[1772724142794,156.524,89.43,89.229,1.94870101]
[1772724142795,19.44510238,89.37,89.283,10.078]
[1772724142994,15.84927575,89.369,89.27,9.37610238]
[1772724143195,15.84927575,89.349,89.25,9.37610238]
[1772724143397,10.071,89.349,89.271,16.04278009]
[1772724143796,10.069,89.37,89.286,16.04278009]
[1772724143997,15.84927575,89.372,89.286,16.04278009]
[1772724144299,25.91727575,89.372,89.295,10.077]
[1772724144497,15.84927575,89.372,89.296,16.04278009]
[1772724145200,9.70733082,89.498,89.237,293.0]
[1772724145201,15.84927575,89.349,89.24,9.37610238]
[1772724145403,9.37610238,89.33,89.24,9.37610238]
[1772724145600,10.07,89.357,89.28,9.37610238]
[1772724145896,15.84927575,89.389,89.28,9.37610238]